fUST/lending_fUST_20241215
["ID","MTS","AMOUNT","RATE_DAILY","PERIOD"]
[345406850,1734249038810,-527.94,0.000285,5]
[345406851,1734249038821,-12325.34474123,0.000285,5]
[345406852,1734249038832,-500.0,0.000285,5]
[345406853,1734249038844,-962.00176007,0.000285,5]
[345406854,1734249039072,-825.19982806,0.000285,5]
[345406855,1734249039083,-13006.13128309,0.000285,5]
[345407214,1734249043785,-692.69118693,0.000285,5]
[345407490,1734249046640,-3835.0,0.000285,5]
[345420974,1734249192189,5062.64162474,0.0002,2]
[345421719,1734249904524,49159.0,0.000255,120]
[345421720,1734249957378,165.342998,0.00013973,2]
[345421723,1734250231863,-300.0,0.00024999,2]
[345421724,1734250231873,-218.98637558,0.00024999,2]
[345422036,1734251129201,165.342998,0.00013973,2]
[345422075,1734251438108,-300.0,0.00021999,2]
[345422076,1734251438118,-316.61126558,0.00022,2]
[345422077,1734251438128,-11651.5975939,0.00022,2]
[345422078,1734251438138,-15751.15054601,0.00022,2]
[345422079,1734251438148,-840.09686588,0.0002201,16]
[345422080,1734251438158,-211.913761,0.00023292,2]
[345422081,1734251438167,-163.7914718,0.00023997,2]
[345422082,1734251438176,-180.712093,0.00024,2]
[345422083,1734251438185,-718.5213239,0.00024051,2]
[345422084,1734251438194,-420.0,0.00024199,2]
[345422085,1734251438203,-7699.04290044,0.00024572,2]
[345422087,1734251438214,-7699.04290044,0.0002469,2]
[345422089,1734251438225,-163.71003747,0.000248,2]
[345422090,1734251438235,-687.79166192,0.000249,2]
[345422091,1734251438244,-195.04,0.0002499,2]
[345422092,1734251438254,-67709.60729391,0.00025,2]
[345422093,1734251438263,-2197.0,0.00025,5]
[345422094,1734251438273,-6888.18825497,0.00025605,120]
[345422095,1734251438283,-687.79166185,0.00025622,2]
[345422096,1734251438293,-263.64109744,0.000259,2]
[345422097,1734251438304,-48802.07219883,0.00026,30]
[345422098,1734251438313,-1809.63866149,0.00026,30]
[345422099,1734251438323,-687.79166185,0.00026345,2]
[345422100,1734251438332,-359.2917127,0.00026482,2]
[345422101,1734251438342,-702.6138082,0.00026482,2]
[345422102,1734251438352,-263.64109743,0.00026525,2]
[345422103,1734251438361,-432.0,0.00026619,2]
[345422104,1734251438371,-687.79166185,0.00027067,2]
[345422105,1734251438381,-333.074,0.0002707,2]
[345422106,1734251438390,-263.64109743,0.0002715,2]
[345422107,1734251438399,-10288.88857371,0.00027197,2]
[345422108,1734251438408,-500.0,0.00027373,2]
[345422109,1734251438418,-500.0,0.00027373,2]
[345422110,1734251438428,-500.0,0.00027396,2]
[345422111,1734251438437,-500.0,0.00027396,2]
[345422112,1734251438447,-500.0,0.00027396,2]
[345422113,1734251438465,-222.06176717,0.00027396,2]
[345422114,1734251438477,-152.24302683,0.00027396,2]
[345422115,1734251438491,-347.75697317,0.00027396,2]
[345422116,1734251438501,-500.0,0.00027396,2]
[345422117,1734251438511,-428.45445683,0.00027396,2]
[345422131,1734251439975,-71.54554317,0.00027396,2]
[345422132,1734251439984,-632.17448761,0.00027396,2]
[345422133,1734251439994,-233.2645245,0.00027396,2]
[345422134,1734251440002,-181.35272084,0.00027396,2]
[345422135,1734251440012,-502.78393663,0.00027397,7]
[345422136,1734251440022,-502.31651675,0.00027397,7]
[345422137,1734251440031,-502.67299302,0.00027397,7]
[345422138,1734251440040,-506.69690236,0.00027397,7]
[345422139,1734251440050,-502.98046203,0.00027397,7]
[345422140,1734251440059,-500.0,0.00027397,7]
[345422141,1734251440068,-502.62949885,0.00027397,7]
[345422142,1734251440077,-503.00526049,0.00027397,7]
[345422143,1734251440086,-503.07740265,0.00027397,7]
[345422144,1734251440095,-500.0,0.00027397,7]
[345422145,1734251440104,-511.38631641,0.00027397,7]
[345422146,1734251440114,-503.76481298,0.00027397,7]
[345422147,1734251440122,-502.44484109,0.00027397,7]
[345422148,1734251440133,-502.29684038,0.00027397,7]
[345422149,1734251440143,-506.18536636,0.00027397,7]
[345422150,1734251440152,-502.41055972,0.00027397,7]
[345422151,1734251440162,-505.3051715,0.00027397,7]
[345422152,1734251440171,-500.0,0.00027397,7]
[345422153,1734251440181,-505.65488185,0.00027397,7]
[345422154,1734251440190,-505.98032953,0.00027397,7]
[345422155,1734251440199,-502.9840656,0.00027397,7]
[345422156,1734251440208,-502.84001195,0.00027397,7]
[345422157,1734251440222,-336.71103817,0.00027397,7]
[345422185,1734251442943,-166.66660414,0.00027397,7]
[345422187,1734251442953,-503.14702604,0.00027397,7]
[345422189,1734251442963,-504.57422628,0.00027397,7]
[345422190,1734251442974,-503.65150385,0.00027397,7]
[345422192,1734251442983,-358.16063969,0.00027397,7]
[345422477,1734251445871,-158.02491189,0.00027397,7]
[345422479,1734251445881,-503.54712265,0.00027397,7]
[345422481,1734251445890,-508.6103237,0.00027397,7]
[345422483,1734251445899,-504.40518962,0.00027397,7]
[345422485,1734251445909,-506.48973737,0.00027397,7]
[345422487,1734251445919,-503.05652284,0.00027397,7]
[345422489,1734251445929,-501.52662251,0.00027397,7]
[345422491,1734251445938,-504.35131859,0.00027397,7]
[345422493,1734251445947,-502.49002931,0.00027397,7]
[345422495,1734251445956,-505.25672614,0.00027397,7]
[345422497,1734251445966,-500.0,0.00027397,7]
[345422499,1734251445976,-506.84475698,0.00027397,7]
[345422501,1734251445986,-599.74139522,0.00027397,7]
[345422503,1734251445995,-506.90300465,0.00027397,7]
[345422505,1734251446006,-504.3910485,0.00027397,7]
[345422507,1734251446015,-256.57383333,0.00027397,7]
[345422509,1734251446025,-500.0,0.00027397,7]
[345422511,1734251446034,-500.0,0.00027397,7]
[345422513,1734251446044,-505.35498262,0.00027397,7]
[345422515,1734251446055,-500.0,0.00027397,7]
[345422517,1734251446068,-503.09789851,0.00027397,7]
[345422519,1734251446078,-504.3300818,0.00027397,7]
[345422521,1734251446087,-507.04131003,0.00027397,7]
[345422524,1734251446096,-338.51140947,0.00027397,7]
[345425220,1734252195256,165.342998,0.00013973,2]
[345425221,1734252452859,153.73224479,0.00024,30]
[345425346,1734252638275,-1722.3396068,0.00026164,2]
[345425491,1734252640106,-634.56425145,0.00026164,2]
[345425493,1734252640117,-476.0323983,0.00026164,2]
[345425495,1734252640129,-495.1144016,0.00026164,2]
[345425497,1734252640140,-823.2107342,0.00026164,2]
[345425499,1734252640151,-471.8561426,0.00026164,2]
[345425500,1734252640162,-351.432246,0.00026164,2]
[345425501,1734252640173,-728.89304805,0.00026164,2]
[345425502,1734252640183,-319.237,0.0002707,2]
[345425503,1734252640191,-157.66995115,0.00027199,2]
[345425504,1734252640203,-142.33004885,0.00027199,2]
[345425505,1734252640213,-10008.15553235,0.000272,4]
[345425584,1734252643161,-4500.27074273,0.000272,4]
[345425877,1734252646055,-8410.20986356,0.000272,4]
[345425879,1734252646064,-10541.79602944,0.00027253,2]
[345425881,1734252646073,-175.76073162,0.00027297,2]
[345425883,1734252646083,-473.14256124,0.00027297,2]
[345425885,1734252646093,-515.5673123,0.00027373,2]
[345425887,1734252646102,-507.46647783,0.00027397,7]
[345425889,1734252646111,-501.73135802,0.00027397,7]
[345425890,1734252646121,-506.38848352,0.00027397,7]
[345425891,1734252646130,-501.75970131,0.00027397,7]
[345425892,1734252646139,-500.0,0.00027397,7]
[345425893,1734252646148,-503.98690033,0.00027397,7]
[345425894,1734252646157,-504.07457354,0.00027397,7]
[345425895,1734252646166,-500.0,0.00027397,7]
[345425896,1734252646176,-500.0,0.00027397,7]
[345425897,1734252646186,-529.89601206,0.00027397,7]
[345425898,1734252646195,-463.65088598,0.00027397,7]
[345425899,1734252646205,-500.0,0.00027397,7]
[345425900,1734252646214,-506.19869112,0.00027397,7]
[345425901,1734252646224,-500.0,0.00027397,7]
[345425902,1734252646233,-500.0,0.00027397,7]
[345425903,1734252646243,-500.0,0.00027397,7]
[345425904,1734252646252,-500.0,0.00027397,7]
[345425905,1734252646262,-503.81303686,0.00027397,7]
[345425906,1734252646271,-506.27870457,0.00027397,7]
[345425907,1734252646280,-500.0,0.00027397,7]
[345425909,1734252646289,-500.0,0.00027397,7]
[345425911,1734252646298,-522.11206551,0.00027397,7]
[345425913,1734252646307,-500.0,0.00027397,7]
[345425915,1734252646316,-506.08797561,0.00027397,7]
[345425917,1734252646325,-500.0,0.00027397,7]
[345425920,1734252646334,-641.51157497,0.00027397,7]
[345425922,1734252646354,-500.0,0.00027397,7]
[345425924,1734252646364,-500.0,0.00027397,7]
[345425926,1734252646373,-500.0,0.00027397,7]
[345425928,1734252646383,-500.0,0.00027397,7]
[345425930,1734252646393,-460.96749604,0.00027397,7]
[345431057,1734253343004,160.881513,0.00013973,2]
[345431101,1734253832503,-161.0,0.00023,2]
[345431102,1734253832514,-323.796,0.0002603,2]
[345431103,1734253832524,-300.0,0.00026641,2]
[345431104,1734253832533,-567.349,0.00026642,2]
[345431105,1734253832545,-9794.616088,0.00026642,2]
[345431106,1734253832557,-157.26955327,0.00026685,2]
[345431107,1734253832567,-157.26955327,0.00026919,2]
[345431108,1734253832576,-1078.18897497,0.00026942,2]
[345431138,1734253838543,-9283.77611303,0.00026942,2]
[345431139,1734253838554,-197.42950952,0.00027,7]
[345432989,1734254247800,157.894855,0.00013973,2]
[345433257,1734255038567,-10361.965088,0.00025762,2]
[345433259,1734255038578,-157.26955327,0.0002593,2]
[345433261,1734255038587,-300.0,0.00025985,2]
[345433263,1734255038596,-327.486,0.0002603,2]
[345433265,1734255038606,-10361.965088,0.00026126,2]
[345433267,1734255038615,-300.0,0.00026326,2]
[345433269,1734255038625,-39888.31337627,0.00026326,2]
[345433271,1734255038634,-896.7322597,0.00026327,2]
[345433273,1734255038645,-10361.965088,0.0002639,2]
[345433275,1734255038655,-413.99974105,0.00026474,2]
[345433277,1734255038664,-10361.9650883,0.00026837,2]
[345433279,1734255038673,-811.5,0.00026967,15]
[345433281,1734255038683,-413.99974102,0.00026972,2]
[345433284,1734255038694,-366.27049048,0.00027,7]
[345433286,1734255038703,-6324.0,0.000272,2]
[345433288,1734255038713,-500.0,0.00027373,2]
[345433290,1734255038722,-502.12909287,0.00027397,7]
[345433292,1734255038732,-500.0,0.00027397,7]
[345433294,1734255038741,-552.58929732,0.00027397,7]
[345433295,1734255038750,-500.0,0.00027397,7]
[345433296,1734255038760,-172.34340212,0.00027397,7]
[345433297,1734255038772,-503.47907222,0.00027397,7]
[345433298,1734255038782,-502.77870074,0.00027397,7]
[345433299,1734255038792,-503.49827863,0.00027397,7]
[345433301,1734255038801,-503.40068018,0.00027397,7]
[345433303,1734255038810,-500.0,0.00027397,7]
[345433305,1734255038819,-500.0,0.00027397,7]
[345433306,1734255038828,-500.0,0.00027397,7]
[345433307,1734255038837,-509.79957759,0.00027397,7]
[345433308,1734255038846,-502.80374805,0.00027397,7]
[345433309,1734255038855,-503.79965961,0.00027397,7]
[345433310,1734255038864,-165.22145526,0.00027397,7]
[345433311,1734255038873,-500.0,0.00027397,7]
[345433312,1734255038882,-503.16121952,0.00027397,7]
[345433313,1734255038891,-509.5,0.00027397,7]
[345433314,1734255038900,-505.25555965,0.00027397,7]
[345433315,1734255038909,-502.29911044,0.00027397,7]
[345433316,1734255038918,-504.68102779,0.00027397,7]
[345433317,1734255038927,-504.4567342,0.00027397,7]
[345433318,1734255038935,-500.0,0.00027397,7]
[345433319,1734255038945,-500.0,0.00027397,7]
[345433320,1734255038954,-503.27311249,0.00027397,7]
[345433321,1734255038963,-505.27041349,0.00027397,7]
[345433322,1734255038972,-503.80999011,0.00027397,7]
[345433323,1734255038984,-507.827697,0.00027397,7]
[345433324,1734255038993,-506.36070106,0.00027397,7]
[345433325,1734255039002,-502.13275833,0.00027397,7]
[345433326,1734255039012,-502.53068448,0.00027397,7]
[345433327,1734255039025,-500.0,0.00027397,7]
[345433328,1734255039034,-500.0,0.00027397,7]
[345433329,1734255039043,-500.0,0.00027397,7]
[345433330,1734255039054,-502.47935596,0.00027397,7]
[345433331,1734255039064,-500.0,0.00027397,7]
[345433332,1734255039073,-162.116463,0.00027397,7]
[345433333,1734255039082,-500.0,0.00027397,7]
[345433334,1734255039091,-500.0,0.00027397,7]
[345433335,1734255039101,-506.12031935,0.00027397,7]
[345433336,1734255039110,-508.6014023,0.00027397,7]
[345433337,1734255039119,-511.00179026,0.00027397,7]
[345433338,1734255039128,-500.0,0.00027397,7]
[345433339,1734255039138,-151.0,0.00027397,7]
[345433340,1734255039148,-151.0,0.00027397,7]
[345433341,1734255039157,-151.0,0.00027397,7]
[345433342,1734255039167,-151.0,0.00027397,7]
[345433343,1734255039176,-151.0,0.00027397,7]
[345433344,1734255039185,-151.0,0.00027397,7]
[345433345,1734255039195,-151.0,0.00027397,7]
[345433346,1734255039204,-500.0,0.00027397,7]
[345433347,1734255039213,-500.0,0.00027397,7]
[345433348,1734255039223,-500.0,0.00027397,7]
[345433349,1734255039232,-1000.0,0.00027397,2]
[345433350,1734255039241,-500.0,0.00027397,7]
[345433351,1734255039251,-500.0,0.00027397,7]
[345433352,1734255039259,-500.0,0.00027397,7]
[345433353,1734255039270,-500.0,0.00027397,7]
[345433354,1734255039280,-500.0,0.00027397,7]
[345433355,1734255039289,-500.0,0.00027397,7]
[345433356,1734255039298,-500.0,0.00027397,7]
[345433357,1734255039307,-504.44415149,0.00027397,7]
[345433358,1734255039318,-500.0,0.00027397,7]
[345433359,1734255039327,-151.0,0.00027397,7]
[345433360,1734255039338,-151.0,0.00027397,7]
[345433361,1734255039348,-151.0,0.00027397,7]
[345433362,1734255039357,-276.466569,0.00027397,7]
[345433363,1734255039366,-504.37228772,0.00027397,7]
[345433364,1734255039375,-500.0,0.00027397,7]
[345433365,1734255039384,-500.0,0.00027397,7]
[345433366,1734255039393,-500.0,0.00027397,7]
[345433367,1734255039402,-504.95122994,0.00027397,7]
[345433368,1734255039411,-500.0,0.00027397,7]
[345433369,1734255039419,-151.0,0.00027397,7]
[345433370,1734255039428,-156.806686,0.00027397,7]
[345433371,1734255039437,-502.61299948,0.00027397,7]
[345433372,1734255039447,-500.0,0.00027397,7]
[345433373,1734255039456,-508.08997649,0.00027397,7]
[345433374,1734255039466,-500.0,0.00027397,7]
[345433375,1734255039475,-500.0,0.00027397,7]
[345433376,1734255039485,-500.0,0.00027397,7]
[345433377,1734255039494,-500.0,0.00027397,7]
[345433378,1734255039504,-151.0,0.00027397,7]
[345433379,1734255039513,-156.575953,0.00027397,7]
[345433380,1734255039524,-513.33367369,0.00027397,7]
[345433381,1734255039533,-500.0,0.00027397,7]
[345433382,1734255039544,-503.33863158,0.00027397,7]
[345433383,1734255039554,-500.0,0.00027397,7]
[345433384,1734255039564,-512.04763788,0.00027397,7]
[345433385,1734255039573,-500.0,0.00027397,7]
[345433386,1734255039582,-500.0,0.00027397,7]
[345433387,1734255039591,-244.86400635,0.00027397,7]
[345433388,1734255039600,-500.0,0.00027397,7]
[345433389,1734255039610,-503.08212743,0.00027397,7]
[345433390,1734255039620,-504.99282886,0.00027397,7]
[345433391,1734255039629,-504.50896554,0.00027397,7]
[345433392,1734255039638,-502.07535608,0.00027397,7]
[345433393,1734255039648,-151.0,0.00027397,7]
[345433394,1734255039657,-169.49839,0.00027397,7]
[345433395,1734255039667,-500.0,0.00027397,7]
[345433396,1734255039676,-500.0,0.00027397,7]
[345433397,1734255039686,-500.0,0.00027397,2]
[345433398,1734255039695,-500.0,0.00027397,7]
[345433399,1734255039704,-151.0,0.00027397,7]
[345433400,1734255039713,-151.0,0.00027397,7]
[345433401,1734255039722,-500.0,0.00027397,7]
[345433402,1734255039732,-516.032676,0.00027397,7]
[345433403,1734255039741,-151.0,0.00027397,7]
[345433404,1734255039751,-151.0,0.00027397,7]
[345433405,1734255039760,-151.0,0.00027397,7]
[345433406,1734255039772,-151.0,0.00027397,7]
[345433407,1734255039784,-151.0,0.00027397,7]
[345433408,1734255039793,-151.0,0.00027397,7]
[345433409,1734255039802,-245.16131,0.00027397,7]
[345433410,1734255039812,-504.37213649,0.00027397,7]
[345433411,1734255039821,-514.95396094,0.00027397,7]
[345433412,1734255039830,-500.0,0.00027397,7]
[345433413,1734255039840,-504.83056103,0.00027397,7]
[345433414,1734255039849,-518.92925291,0.00027397,7]
[345433415,1734255039859,-513.73585756,0.00027397,7]
[345433416,1734255039868,-500.67719377,0.00027397,2]
[345433417,1734255039877,-504.18764607,0.00027397,7]
[345433418,1734255039888,-500.0,0.00027397,7]
[345433419,1734255039898,-506.62890895,0.00027397,7]
[345433421,1734255039908,-500.0,0.00027397,7]
[345433422,1734255039918,-504.7041082,0.00027397,7]
[345433423,1734255039927,-737.64,0.00027397,7]
[345433424,1734255039936,-508.13391253,0.00027397,7]
[345433425,1734255039946,-500.0,0.00027397,7]
[345433426,1734255039955,-500.0,0.00027397,7]
[345433427,1734255039965,-500.0,0.00027397,7]
[345433428,1734255039977,-502.79062648,0.00027397,7]
[345433429,1734255039986,-516.82871808,0.00027397,7]
[345433430,1734255039998,-500.0,0.00027397,7]
[345433431,1734255040008,-151.0,0.00027397,7]
[345433432,1734255040020,-151.0,0.00027397,7]
[345433433,1734255040029,-151.0,0.00027397,7]
[345433434,1734255040039,-504.03067942,0.00027397,7]
[345433437,1734255040049,-151.0,0.00027397,7]
[345433438,1734255040059,-151.0,0.00027397,7]
[345433439,1734255040068,-290.925112,0.00027397,7]
[345433440,1734255040078,-500.0,0.00027397,7]
[345433441,1734255040087,-509.11795762,0.00027397,7]
[345433442,1734255040096,-500.0,0.00027397,7]
[345433443,1734255040106,-504.31763555,0.00027397,7]
[345433444,1734255040116,-516.65061611,0.00027397,7]
[345433445,1734255040126,-508.22825084,0.00027397,7]
[345433446,1734255040135,-507.35840597,0.00027397,7]
[345433447,1734255040145,-500.0,0.00027397,7]
[345433448,1734255040155,-151.0,0.00027397,7]
[345433449,1734255040164,-151.0,0.00027397,7]
[345433451,1734255040173,-151.0,0.00027397,7]
[345433453,1734255040183,-151.0,0.00027397,7]
[345433455,1734255040192,-151.0,0.00027397,7]
[345433457,1734255040202,-504.03940387,0.00027397,7]
[345433459,1734255040212,-151.0,0.00027397,7]
[345433461,1734255040222,-503.49195445,0.00027397,7]
[345433463,1734255040232,-500.0,0.00027397,7]
[345433465,1734255040242,-505.82869701,0.00027397,7]
[345433467,1734255040252,-506.56701257,0.00027397,7]
[345433469,1734255040262,-500.0,0.00027397,7]
[345433471,1734255040273,-509.4023795,0.00027397,7]
[345433473,1734255040283,-500.0,0.00027397,7]
[345433475,1734255040291,-500.0,0.00027397,7]
[345433477,1734255040302,-502.81179546,0.00027397,7]
[345433479,1734255040312,-506.2427838,0.00027397,7]
[345433481,1734255040321,-500.0,0.00027397,7]
[345433484,1734255040331,-507.67506924,0.00027397,7]
[345433485,1734255040341,-511.10240387,0.00027397,7]
[345433488,1734255040351,-500.0,0.00027397,7]
[345433489,1734255040360,-502.84445079,0.00027397,7]
[345433492,1734255040369,-511.08147852,0.00027397,7]
[345433493,1734255040379,-636.51566686,0.00027397,7]
[345433496,1734255040389,-500.0,0.00027397,7]
[345433497,1734255040398,-517.16793955,0.00027397,7]
[345433500,1734255040408,-500.0,0.00027397,7]
[345433502,1734255040418,-500.0,0.00027397,7]
[345433504,1734255040427,-191.62957594,0.00027397,7]
[345433506,1734255040437,-726.57,0.00027397,7]
[345433517,1734255040531,-549.43144096,0.00027397,7]
[345433519,1734255040541,-500.0,0.00027397,7]
[345433521,1734255040550,-503.38782012,0.00027397,7]
[345433523,1734255040560,-500.0,0.00027397,7]
[345433525,1734255040569,-504.37146123,0.00027397,7]
[345433527,1734255040579,-500.0,0.00027397,7]
[345433529,1734255040589,-500.0,0.00027397,7]
[345433531,1734255040598,-500.0,0.00027397,7]
[345433533,1734255040608,-500.0,0.00027397,7]
[345433535,1734255040618,-525.17726217,0.00027397,7]
[345433537,1734255040627,-426.04150769,0.00027397,7]
[345433539,1734255040636,-501.84568124,0.00027397,7]
[345433541,1734255040646,-500.0,0.00027397,7]
[345433543,1734255040655,-500.0,0.00027397,7]
[345433545,1734255040665,-501.27146098,0.00027397,7]
[345433547,1734255040675,-500.0,0.00027397,7]
[345433549,1734255040684,-540.46720123,0.00027397,7]
[345433551,1734255040693,-500.0,0.00027397,7]
[345433553,1734255040702,-500.0,0.00027397,7]
[345433555,1734255040712,-502.65020825,0.00027397,7]
[345433557,1734255040721,-500.0,0.00027397,7]
[345433559,1734255040730,-151.0,0.00027397,7]
[345433561,1734255040739,-500.0,0.00027397,7]
[345433563,1734255040749,-502.07346321,0.00027397,7]
[345433565,1734255040758,-161.189345,0.00027397,7]
[345433567,1734255040768,-500.0,0.00027397,7]
[345433569,1734255040779,-500.0,0.00027397,7]
[345433571,1734255040788,-503.23839406,0.00027397,7]
[345433573,1734255040798,-610.23,0.00027397,7]
[345433575,1734255040807,-503.43761496,0.00027397,7]
[345433577,1734255040816,-515.50317314,0.00027397,7]
[345433579,1734255040826,-500.0,0.00027397,7]
[345433581,1734255040836,-500.0,0.00027397,7]
[345433583,1734255040846,-502.87951586,0.00027397,7]
[345433585,1734255040855,-500.0,0.00027397,7]
[345433586,1734255040865,-500.0,0.00027397,7]
[345433588,1734255040874,-151.0,0.00027397,7]
[345433590,1734255040883,-257.422582,0.00027397,7]
[345433592,1734255040892,-500.0,0.00027397,7]
[345433593,1734255040902,-283.63131913,0.00027397,7]
[345433595,1734255040912,-500.0,0.00027397,7]
[345433597,1734255040921,-505.63537453,0.00027397,7]
[345433599,1734255040931,-151.0,0.00027397,7]
[345433601,1734255040941,-151.0,0.00027397,7]
[345433603,1734255040950,-151.0,0.00027397,7]
[345433606,1734255040960,-151.0,0.00027397,7]
[345433608,1734255040969,-151.0,0.00027397,7]
[345433609,1734255040984,-245.85799,0.00027397,7]
[345433610,1734255040993,-506.12623671,0.00027397,7]
[345433611,1734255041004,-500.0,0.00027397,7]
[345433612,1734255041013,-166.429483,0.00027397,7]
[345433613,1734255041025,-500.0,0.00027397,7]
[345433614,1734255041035,-500.0,0.00027397,7]
[345433615,1734255041045,-4166.66,0.00027397,2]
[345433616,1734255041057,-500.0,0.00027397,7]
[345433617,1734255041068,-500.0,0.00027397,7]
[345433618,1734255041079,-501.94296505,0.00027397,7]
[345433619,1734255041088,-278.37183919,0.00027397,7]
[345433620,1734255041098,-413.99974102,0.00027471,2]
[345433621,1734255041108,-8028.2420803,0.000275,30]
[345433622,1734255041118,-151.0,0.000275,7]
[345433623,1734255041128,-500.0,0.00027664,2]
[345433624,1734255041137,-600.0,0.00027664,2]
[345433625,1734255041147,-500.0,0.00027664,2]
[345433626,1734255041157,-500.0,0.00027664,2]
[345433627,1734255041167,-500.0,0.00027664,2]
[345433628,1734255041177,-500.0,0.00027664,2]
[345433629,1734255041186,-500.0,0.00027664,2]
[345433630,1734255041197,-500.0,0.00027664,2]
[345433631,1734255041206,-500.0,0.00027664,2]
[345433632,1734255041216,-500.0,0.00027664,2]
[345433633,1734255041225,-500.0,0.00027664,2]
[345433634,1734255041235,-228.51184875,0.00027664,2]
[345433635,1734255041244,-500.0,0.00027664,2]
[345433636,1734255041253,-500.0,0.00027664,2]
[345433637,1734255041263,-500.0,0.00027664,2]
[345433638,1734255041274,-500.0,0.00027664,2]
[345433639,1734255041284,-500.0,0.00027664,2]
[345433640,1734255041293,-500.0,0.00027664,2]
[345433641,1734255041303,-500.0,0.00027664,2]
[345433642,1734255041312,-500.0,0.00027664,2]
[345433643,1734255041321,-500.0,0.00027664,2]
[345433644,1734255041331,-500.0,0.00027664,2]
[345433645,1734255041340,-500.0,0.00027664,2]
[345433646,1734255041350,-500.0,0.00027664,2]
[345433647,1734255041359,-500.0,0.00027664,2]
[345433648,1734255041368,-500.0,0.00027664,2]
[345433649,1734255041378,-500.0,0.00027664,2]
[345433650,1734255041387,-500.0,0.00027664,2]
[345433651,1734255041396,-500.0,0.00027664,2]
[345433652,1734255041406,-500.0,0.00027664,2]
[345433653,1734255041415,-500.0,0.00027664,2]
[345433654,1734255041425,-500.0,0.00027664,2]
[345433655,1734255041435,-500.0,0.00027664,2]
[345433656,1734255041444,-500.0,0.00027664,2]
[345433657,1734255041453,-500.0,0.00027664,2]
[345433658,1734255041462,-500.0,0.00027664,2]
[345433659,1734255041471,-500.0,0.00027664,2]
[345433660,1734255041480,-364.13357251,0.00027664,2]
[345433661,1734255041490,-500.0,0.00027664,2]
[345433662,1734255041499,-233.40295938,0.00027664,2]
[345433663,1734255041508,-500.0,0.00027664,2]
[345433664,1734255041518,-422.50114277,0.00027664,2]
[345433665,1734255041528,-500.0,0.00027664,2]
[345433666,1734255041537,-500.0,0.00027664,2]
[345433667,1734255041547,-500.0,0.00027664,2]
[345433668,1734255041556,-500.0,0.00027664,2]
[345433669,1734255041565,-500.0,0.00027664,2]
[345433670,1734255041575,-500.0,0.00027664,2]
[345433671,1734255041584,-500.0,0.00027664,2]
[345433672,1734255041594,-500.0,0.00027664,2]
[345433673,1734255041604,-500.0,0.00027664,2]
[345433674,1734255041614,-500.0,0.00027664,2]
[345433675,1734255041623,-500.0,0.00027664,2]
[345433676,1734255041633,-500.0,0.00027664,2]
[345433677,1734255041643,-500.0,0.00027664,2]
[345433678,1734255041652,-261.3088662,0.00027664,2]
[345433679,1734255041662,-500.0,0.00027664,2]
[345433680,1734255041671,-500.0,0.00027664,2]
[345433681,1734255041681,-500.0,0.00027664,2]
[345433682,1734255041690,-500.0,0.00027664,2]
[345433683,1734255041702,-500.0,0.00027664,2]
[345433684,1734255041712,-500.0,0.00027664,2]
[345433685,1734255041723,-500.0,0.00027664,2]
[345433686,1734255041734,-500.0,0.00027664,2]
[345433687,1734255041744,-500.0,0.00027664,2]
[345433688,1734255041754,-500.0,0.00027664,2]
[345433689,1734255041764,-500.0,0.00027664,2]
[345433690,1734255041774,-500.0,0.00027664,2]
[345433691,1734255041784,-500.0,0.00027664,2]